{"text_format":"1","workbook":"xlsx","n_sheets":4,"sheets":["Identification","Bilan de compétences Oral","Feuil1","Feuil2"],"not_rendered":{"charts":17,"images":1,"macros":1,"external_links":0,"defined_names":2,"comments":0,"pivot_tables":0},"unopened":[],"bounds":{"document_bytes":16777216,"sheet_cells":100000,"rows_first":2000,"rows_last":500,"rows_between":2000,"halvings":0,"cell_chars":16384,"cell_head_chars":4096},"cells_cut":0,"cells_raw":0,"read":"whole","date_system":"1900"}

{"sheet":"Identification","index":0,"n_rows":20,"n_cols":8,"rows_kept":20,"cut":false,"hidden":false,"merged":[[0,0,0,4],[3,0,3,4],[4,1,4,4],[13,0,13,4],[7,1,7,4],[10,0,10,4],[11,0,11,4],[12,0,12,4],[5,1,5,4],[6,1,6,4],[1,0,1,4],[14,1,14,4],[15,1,15,4],[16,1,16,4],[22,0,22,1],[23,0,23,1],[21,0,21,1],[19,0,19,1],[18,0,18,4],[20,0,20,1]]}
[]
["Toutes les cases grisées doivent être renseignées par les professeurs évaluateurs. Elles deviennent blanches une fois remplies."]
[null,null,null,null,null,null,null,"C4A"]
["Identification",null,null,null,null,null,null,"EP3 Ponctuel"]
["Diplôme ","Certificat d'Aptitude Professionnelle \" Conducteur Agent d'accueil en autobus et autocar \"  "]
["Épreuve","EP3 – Gestion de la relation Client - Unité UP3",null,null,null,null,null,{"$f":"CONCATENATE(H3,\"-\",H4,\"-\",B9,\"-\",B10)","v":"C4A-EP3 Ponctuel-2025-"}]
["Coefficient ",5]
["Établissement du candidat"]
["Session  ",2025]
["Nom et prénom ou numéro du candidat"]
[]
["Description sommaire du travail demandé"]
[null,null,null,null,null,null," "]
["Tâches support de l'évaluation"]
["A3.1","Prise en charge du client"]
["A3.2","Traitement de l’information liée au service"]
["A3.3","Suivi et la fidélisation du client"]
[]
[" Les lignes renseignent automatiquement la feuille \"Bilan de compétences\" sauf la date à renseigner manuellement le jour de l'attribution de la note"]
["Noms et prénoms des professeurs évaluateurs"]

{"sheet":"Bilan de compétences Oral","index":1,"n_rows":52,"n_cols":25,"rows_kept":52,"cut":false,"hidden":false,"merged":[[31,0,34,1],[28,0,28,12],[26,0,27,1],[23,2,23,6],[25,2,25,6],[29,0,30,1],[37,7,37,11],[35,2,35,6],[37,2,37,6],[34,2,34,6],[17,2,17,6],[26,2,26,6],[18,2,18,6],[36,2,36,6],[36,7,36,11],[30,2,30,6],[33,2,33,6],[35,7,35,11],[32,2,32,6],[27,2,27,6],[29,2,29,6],[31,2,31,6],[51,1,51,5],[52,1,52,5],[47,2,47,5],[43,1,45,1],[48,2,48,5],[50,2,50,5],[46,2,46,5],[3,0,3,12],[4,2,4,6],[15,2,15,6],[4,0,6,1],[5,2,5,6],[8,2,8,6],[15,0,16,1],[16,2,16,6],[6,2,6,6],[7,0,14,1],[9,2,9,6],[10,2,10,6],[11,2,11,6],[12,2,12,6],[13,2,13,6],[14,2,14,6],[0,0,0,1],[0,2,0,6],[2,0,2,1],[2,2,2,6],[1,2,1,11],[46,7,46,10],[47,7,47,10],[42,2,42,5],[43,2,45,5],[40,10,40,11],[40,8,40,9],[40,2,40,7],[38,1,38,6],[39,8,39,9],[39,2,39,7],[38,8,38,11],[39,10,39,11],[7,2,7,6],[22,2,22,6],[19,0,19,12],[20,2,20,6],[17,0,18,1],[20,0,21,1],[21,2,21,6],[22,0,25,1],[24,2,24,6]]}
["CAP C4A",null,"Outil d'évaluation\nEP3 - GESTION DE LA RELATION CLIENT",null,null,null,null,null,null,null,null,null,null,null,null,null,null,null,null,null,null,null,null,"Positionnement du candidat"]
[null,null,"     NE: Non Evalué / NM : Non Maîtrisée / IM : Insuffisamment Maîtrisée / M : Maîtrisée / BM : Bien Maîtrisée",null,null,null,null,null,null,null,null,null,null,null,"Poids de la compétence à titre indicatif ",33.3333333333333]
["COMPÉTENCES ÉVALUÉES",null,"                                  Critères d'évaluation                       ",null,null,null,null,"NE \nou \nnon","MI","MF","MS","TBM",null,null,null,"Notes","Éval","Notes","Ref repartition",null,null,null,"Positionnement en %","Positionnement ","."]
["C4 PRENDRE EN CHARGE LE CLIENT",null,null,null,null,null,null,null,null,null,null,null,null,null,{"$f":"P2/100","v":0.33333333333333298},{"$f":"SUM(P5:P19)","v":{"$error":"#DIV/0!"}},{"$f":"SUM(Q5:Q19)","v":0},{"$f":"SUM(R5:R19)","v":{"$error":"#DIV/0!"}},{"$f":"(20*P2)/100","v":6.6666666666666607},null,{"$f":"SUM(U5:U35)","v":0},{"$f":"IF(U4=12,1,0)","v":0}]
["C4.1 - Qualifier la clientèle ",null,"C4.1 - Les profils des clients sont identifiés. ",null,null,null,null,null,null,null,null,null,{"$f":"IF(T5>1,\"◄\",(IF(T5<1,\"◄\",\"\")))","v":"◄"},null,1,{"$f":"SUM(R5:R5)","v":{"$error":"#DIV/0!"}},{"$f":"IF(COUNTBLANK(H5:L5)=5,0,IF(H5=\"\",O5,0))","v":0},{"$f":"(IF(H5<>\"\",0,0)+IF(I5<>\"\",1/10,0)+IF(J5<>\"\",4/10,0)+IF(K5<>\"\",7/10,0)+IF(L5<>\"\",1,0))*O$4*20*Q5/SUM(Q$5:Q$19)","v":{"$error":"#DIV/0!"}},null,{"$f":"COUNTA(H5:L5)","v":0},{"$f":"COUNTBLANK(M5)","v":0},null,{"$f":"((R5*100)/(S$4/5))/100","v":{"$error":"#DIV/0!"}},{"$f":"(IF(I5<>\"\",1,0)+IF(J5<>\"\",2,0)+IF(K5<>\"\",3,0)+IF(L5<>\"\",4,0))","v":0}]
[null,null,"C4.1 - Le comportement d’achat des clients est connu.",null,null,null,null,null,null,null,null,null,{"$f":"IF(T6>1,\"◄\",(IF(T6<1,\"◄\",\"\")))","v":"◄"},null,1,{"$error":"#DIV/0!"},{"$f":"IF(COUNTBLANK(H6:L6)=5,0,IF(H6=\"\",O6,0))","v":0},{"$f":"(IF(H6<>\"\",0,0)+IF(I6<>\"\",1/10,0)+IF(J6<>\"\",4/10,0)+IF(K6<>\"\",7/10,0)+IF(L6<>\"\",1,0))*O$4*20*Q6/SUM(Q$5:Q$19)","v":{"$error":"#DIV/0!"}},null,{"$f":"COUNTA(H6:L6)","v":0},{"$f":"COUNTBLANK(M6)","v":0},null,{"$f":"((R6*100)/(S$4/5))/100","v":{"$error":"#DIV/0!"}},{"$f":"(IF(I6<>\"\",1,0)+IF(J6<>\"\",2,0)+IF(K6<>\"\",3,0)+IF(L6<>\"\",4,0))","v":0}]
[null,null,"C4.1 - Les principes des segmentations du profil-client sont identifiés.",null,null,null,null,null,null,null,null,null,"◄",null,1,{"$error":"#DIV/0!"},0,{"$error":"#DIV/0!"},null,0,{"$f":"COUNTBLANK(M7)","v":0},null,{"$error":"#DIV/0!"},0]
["C4.2 - Entrer en contact avec le client ",null,"C4.2  - La prise de contact avec le client est conforme aux usages de l’organisation (SBAM, écoute active)",null,null,null,null,null,null,null,null,null,"◄",null,1,{"$error":"#DIV/0!"},0,{"$f":"(IF(H8<>\"\",0,0)+IF(I8<>\"\",1/10,0)+IF(J8<>\"\",4/10,0)+IF(K8<>\"\",7/10,0)+IF(L8<>\"\",1,0))*O$4*20*Q8/SUM(Q$5:Q$19)","v":{"$error":"#DIV/0!"}},null,0,0,null,{"$error":"#DIV/0!"},0]
[null,null,"C4.2  - Le client est accueilli avec empathie.",null,null,null,null,null,null,null,null,null,"◄",null,1,{"$error":"#DIV/0!"},0,{"$f":"(IF(H9<>\"\",0,0)+IF(I9<>\"\",1/10,0)+IF(J9<>\"\",4/10,0)+IF(K9<>\"\",7/10,0)+IF(L9<>\"\",1,0))*O$4*20*Q9/SUM(Q$5:Q$19)","v":{"$error":"#DIV/0!"}},null,0,0,null,{"$error":"#DIV/0!"},0]
[null,null,"C4.2  - Les titres de transport sont contrôlés.",null,null,null,null,null,null,null,null,null,"◄",null,1,{"$error":"#DIV/0!"},0,{"$error":"#DIV/0!"},null,0,0,null,{"$error":"#DIV/0!"},0]
[null,null,"C4.2  - Les procédures de lutte contre la fraude sont appliquées",null,null,null,null,null,null,null,null,null,"◄",null,1,{"$error":"#DIV/0!"},0,{"$error":"#DIV/0!"},null,0,0,null,{"$error":"#DIV/0!"},0]
[null,null,"C4.2  - La communication verbale et non verbale, la posture et la tenue sont adaptées",null,null,null,null,null,null,null,null,null,"◄",null,1,{"$error":"#DIV/0!"},0,{"$error":"#DIV/0!"},null,0,0,null,{"$error":"#DIV/0!"},0]
[null,null,"C4.2  - L’étiquetage des bagages est contrôlé",null,null,null,null,null,null,null,null,null,"◄",null,1,{"$error":"#DIV/0!"},0,{"$error":"#DIV/0!"},null,0,0,null,{"$error":"#DIV/0!"},0]
[null,null,"C4.2  - Les bagages sont gérés de manière rationnelle",null,null,null,null,null,null,null,null,null,"◄",null,1,{"$error":"#DIV/0!"},0,{"$error":"#DIV/0!"},null,0,0,null,{"$error":"#DIV/0!"},0]
[null,null,"C4.2  - La prise de congé est effectuée avec courtoisie",null,null,null,null,null,null,null,null,null,"◄",null,1,{"$error":"#DIV/0!"},0,{"$error":"#DIV/0!"},null,0,0,null,{"$error":"#DIV/0!"},0]
["C4.3 - Rechercher les besoins, identifier la demande y compris les besoins spécifiques des clients, des personnes à mobilités réduites et des personnes handicapées",null,"C4.3 - L’utilisation des différents types de questions et la pratique de l’écoute active permettent de repérer les besoins.",null,null,null,null,null,null,null,null,null,"◄",null,1,{"$error":"#DIV/0!"},0,{"$error":"#DIV/0!"},null,0,{"$f":"COUNTBLANK(M16)","v":0},null,{"$error":"#DIV/0!"},0]
[null,null,"C4.3 - Les besoins sont identifiés en toutes circonstances y compris pour la prise en charge des utilisateurs en fauteuil roulant (UFR) et des enfants.",null,null,null,null,null,null,null,null,null,"◄",null,1,{"$error":"#DIV/0!"},0,{"$error":"#DIV/0!"},null,0,{"$f":"COUNTBLANK(M17)","v":0},null,{"$error":"#DIV/0!"},0]
["C4.4 - Répondre à la demande, présenter et argumenter l’offre",null,"C4.4 - Des solutions peuvent être appliquées et une réponse appropriée est apportée. ",null,null,null,null,null,null,null,null,null,"◄",null,1,{"$error":"#DIV/0!"},0,{"$error":"#DIV/0!"},null,0,{"$f":"COUNTBLANK(M18)","v":0},null,{"$error":"#DIV/0!"},0]
[null,null,"C4.4 - La présentation de l’offre et l’argumentation sont adaptées aux besoins du client.",null,null,null,null,null,null,null,null,null,"◄",null,1,{"$error":"#DIV/0!"},0,{"$error":"#DIV/0!"},null,0,{"$f":"COUNTBLANK(M19)","v":0},null,{"$error":"#DIV/0!"},0]
["C5 TRAITER L’INFORMATION LIEE AU SERVICE",null,null,null,null,null,null,null,null,null,null,null,null,null,{"$f":"P2/100","v":0.33333333333333298},{"$f":"SUM(P21:P28)","v":{"$error":"#DIV/0!"}},{"$f":"SUM(Q21:Q28)","v":0},{"$f":"SUM(R21:R28)","v":{"$error":"#DIV/0!"}},{"$f":"(20*Q$2)/100","v":0}]
["C5.1 - Repérer les interlocuteurs et sélectionner les sources d’information",null,"C5.1 - La diversité des interlocuteurs et des sources d’informations est repérée.",null,null,null,null,null,null,null,null,null,{"$f":"IF(T21>1,\"◄\",(IF(T21<1,\"◄\",\"\")))","v":"◄"},null,1,{"$f":"SUM(R21:R21)","v":{"$error":"#DIV/0!"}},{"$f":"IF(COUNTBLANK(H21:L21)=5,0,IF(H21=\"\",O21,0))","v":0},{"$f":"(IF(H21<>\"\",0,0)+IF(I21<>\"\",1/10,0)+IF(J21<>\"\",4/10,0)+IF(K21<>\"\",7/10,0)+IF(L21<>\"\",1,0))*O$20*20*Q21/SUM(Q$21:Q$35)","v":{"$error":"#DIV/0!"}},null,{"$f":"COUNTA(H21:L21)","v":0},{"$f":"COUNTBLANK(M21)","v":0},null,{"$error":"#DIV/0!"},{"$f":"(IF(I21<>\"\",1,0)+IF(J21<>\"\",2,0)+IF(K21<>\"\",3,0)+IF(L21<>\"\",4,0))","v":0}]
[null,null,"C5.1 - La documentation, les ressources, les outils sont recensés, vérifiés, organisés.",null,null,null,null,null,null,null,null,null,"◄",null,1,{"$f":"SUM(R22:R22)","v":{"$error":"#DIV/0!"}},0,{"$f":"(IF(H22<>\"\",0,0)+IF(I22<>\"\",1/10,0)+IF(J22<>\"\",4/10,0)+IF(K22<>\"\",7/10,0)+IF(L22<>\"\",1,0))*O$20*20*Q22/SUM(Q$21:Q$35)","v":{"$error":"#DIV/0!"}},null,{"$f":"COUNTA(H22:L22)","v":0},{"$f":"COUNTBLANK(M22)","v":0},null,{"$error":"#DIV/0!"},0]
["C5.2 - Transmettre les informations utiles au service à l’interlocuteur concerné",null,"C5.2 - Les procédures de collecte ou de recueil d’informations sont respectées.",null,null,null,null,null,null,null,null,null,"◄",null,1,{"$error":"#DIV/0!"},0,{"$error":"#DIV/0!"},null,0,{"$f":"COUNTBLANK(M23)","v":0},null,{"$error":"#DIV/0!"},0]
[null,null,"C5.2 - Une information simple, claire et précise est fournie à l’interlocuteur, une documentation adéquate est éventuellement transmise.",null,null,null,null,null,null,null,null,null,"◄",null,1,{"$error":"#DIV/0!"},0,{"$error":"#DIV/0!"},null,0,{"$f":"COUNTBLANK(M24)","v":0},null,{"$error":"#DIV/0!"},0]
[null,null,"C5.2 - L’information collectée est transmise oralement et/ou par écrit aux services appropriés selon le contexte, la situation et les procédures en vigueur dans l’organisation.",null,null,null,null,null,null,null,null,null,"◄",null,1,{"$f":"SUM(R25:R25)","v":{"$error":"#DIV/0!"}},{"$f":"IF(COUNTBLANK(H25:L25)=5,0,IF(H25=\"\",O25,0))","v":0},{"$f":"(IF(H25<>\"\",0,0)+IF(I25<>\"\",1/10,0)+IF(J25<>\"\",4/10,0)+IF(K25<>\"\",7/10,0)+IF(L25<>\"\",1,0))*O$20*20*Q25/SUM(Q$21:Q$35)","v":{"$error":"#DIV/0!"}},null,{"$f":"COUNTA(H25:L25)","v":0},0,null,{"$f":"((R25*100)/(S$4/5))/100","v":{"$error":"#DIV/0!"}},0]
[null,null,"C5.2 - Le destinataire et l’objet du message sont repérés correctement, les informations recueillies sont fidèlement restituées.",null,null,null,null,null,null,null,null,null,"◄",null,1,{"$error":"#DIV/0!"},0,{"$error":"#DIV/0!"},null,0,0,null,{"$error":"#DIV/0!"},0]
["C5.3 - Respecter les règles éthiques",null,"C5.3 - La confidentialité des données est respectée.",null,null,null,null,null,null,null,null,null,"◄",null,1,{"$error":"#DIV/0!"},0,{"$error":"#DIV/0!"},null,0,0,null,{"$error":"#DIV/0!"},0]
[null,null,"C5.3 - L’intérêt des clients et de l’organisation est préservé.",null,null,null,null,null,null,null,null,null,"◄",null,1,{"$error":"#DIV/0!"},0,{"$error":"#DIV/0!"},null,0,{"$f":"COUNTBLANK(M28)","v":0},null,{"$error":"#DIV/0!"},0]
["C6 SUIVRE LA FIDELISATION DU CLIENT",null,null,null,null,null,null,null,null,null,null,null,null,null,{"$f":"O4","v":0.33333333333333298},{"$f":"SUM(P30:P35)","v":{"$error":"#DIV/0!"}},{"$f":"SUM(Q30:Q35)","v":0},{"$f":"SUM(R30:R35)","v":{"$error":"#DIV/0!"}}]
["C6.1 - Assurer le suivi de la relation client",null,"C6.1 - Les procédures et services de l’organisation sont mis en œuvre pour satisfaire, fidéliser le client et véhiculer l’image de marque de l’entreprise.",null,null,null,null,null,null,null,null,null,"◄",null,1,{"$f":"SUM(R30:R30)","v":{"$error":"#DIV/0!"}},0,{"$f":"(IF(H30<>\"\",0,0)+IF(I30<>\"\",1/10,0)+IF(J30<>\"\",4/10,0)+IF(K30<>\"\",7/10,0)+IF(L30<>\"\",1,0))*O$20*20*Q30/SUM(Q$21:Q$35)","v":{"$error":"#DIV/0!"}},null,0,{"$f":"COUNTBLANK(M30)","v":0},null,{"$error":"#DIV/0!"},{"$f":"(IF(I30<>\"\",1,0)+IF(J30<>\"\",2,0)+IF(K30<>\"\",3,0)+IF(L30<>\"\",4,0))","v":0}]
[null,null,"C6.1 - La satisfaction et la fidélisation sont favorisées par des attitudes professionnelles adaptées.",null,null,null,null,null,null,null,null,null,"◄",null,1,{"$f":"SUM(R31:R31)","v":{"$error":"#DIV/0!"}},0,{"$error":"#DIV/0!"},null,{"$f":"COUNTA(H31:L31)","v":0},{"$f":"COUNTBLANK(M31)","v":0},null,{"$error":"#DIV/0!"},0]
["C6.2 - Prévenir et gérer les situations conflictuelles",null,"C6.2 - Les motifs d’insatisfaction du client sont repérés et une réponse appropriée est apportée.",null,null,null,null,null,null,null,null,null,"◄",null,1,{"$error":"#DIV/0!"},0,{"$error":"#DIV/0!"},null,0,0,null,{"$error":"#DIV/0!"},0]
[null,null,"C6.2 - Les techniques de gestion de la relation conflictuelle sont appliquées.",null,null,null,null,null,null,null,null,null,"◄",null,1,{"$error":"#DIV/0!"},0,{"$error":"#DIV/0!"},null,0,0,null,{"$error":"#DIV/0!"},0]
[null,null,"C6.2 - Les réponses sont adaptées à la situation vécue",null,null,null,null,null,null,null,null,null,"◄",null,1,{"$error":"#DIV/0!"},0,{"$error":"#DIV/0!"},null,0,0,null,{"$error":"#DIV/0!"},0]
[null,null,"C6.2 - Les signaux d’alerte sont repérés et pris en compte.",null,null,null,null,null,null,null,null,null,"◄",null,1,{"$error":"#DIV/0!"},0,{"$error":"#DIV/0!"},null,0,{"$f":"COUNTBLANK(M35)","v":0},null,{"$error":"#DIV/0!"},0]
[null,null,"Taux d'indicateurs évalués pour évaluer la compétence - C4 PRENDRE EN CHARGE LE CLIENT",null,null,null,null,{"$f":"Q4/SUM(O5:O19)","v":0}]
[null,null,"Taux d'indicateurs évalués pour évaluer la compétence - C5 TRAITER L’INFORMATION LIEE AU SERVICE",null,null,null,null,{"$f":"Q20/SUM(O21:O28)","v":0}]
[null,null,"Taux d'indicateurs évalués pour évaluer la compétence - C6 SUIVRE ETFIDELISER LE CLIENT",null,null,null,null,{"$f":"Q29/SUM(O30:O35)","v":0}]
[]
[null,null,"Note obtenue par calcul automatique",null,null,null,null,null,null,null,"/20"]
[null,null,"                                                                                                         Note sur 20 proposée au jury                                                                          \n  (la cellule est rouge si la note n'est pas validable)  ",null,null,null,null,null,null,null,"/20"]
[]
[null,null,"Nom et prénom du candidat"]
[null,null,{"$f":"Identification!B10","v":0}]
[]
[]
[null,"Noms, prénoms et disciplines des examinateurs                                                         attribuant la note","Emargement",null,null,null,null,"Date"]
[null,{"$f":"Identification!A21","v":0},null,null,null,null,null,{"$f":"TODAY()","v":"2024-10-18"}]
[null,{"$f":"Identification!A22","v":0}]
[null,{"$f":"Identification!A23","v":0}]
[null,{"$f":"Identification!A24","v":0}]
[null,"Commentaire"]

{"sheet":"Feuil1","index":2,"n_rows":16,"n_cols":4,"rows_kept":16,"cut":false,"hidden":true,"merged":[[5,1,9,1],[5,3,9,3],[10,1,15,1],[10,3,15,3]]}
[]
[]
[]
[]
[null,"Capacités","Critères présents dans l'arrêté","Pondération"]
[null,"Capacité à restituer le travail mené dans le cadre de la réalisation du chef-d'œuvre","L'identification claire, précise et restituée objectivement des points suivants : objectifs du projet, étapes, acteurs, part individuelle investie dans le projet.",0.5]
[null,null,"La hiérarchisation correcte des informations délivrées pour introduire le sujet."]
[null,null,"La clarté de la présentation et la pertinence des termes utilisés."]
[null,null,"Le respect des consignes données sur le contenu exigé de la présentation."]
[null,null,"L'autonomie d'expression par rapport au support de présentation orale du chef-d'œuvre."]
[null,"Capacité à analyser sa démarche et à la situer dans le métier et la filière professionnelle","L'identification des difficultés rencontrées et de la manière dont elles ont été dépassées ou non.",0.5]
[null,null,"La mise en avant des aspects positifs ou présentant des difficultés rencontrés au long du projet."]
[null,null,"La mise en perspective de l'expérience tirée du chef-d'œuvre dans le cadre plus large du contexte économique, culturel, de la filière métiers concernée."]
[null,null,"L'émission d'un avis ou ressenti personnel sur le chef-d'œuvre entrepris."]
[null,null,"La mise en exergue de la pertinence du chef-d'œuvre par rapport à la filière métier du candidat."]
[null,null,"Au travers de la réalisation du chef-d'œuvre, l'identification des enjeux de transition écologique et/ou numérique, dans le champ de sa spécialité de baccalauréat."]

{"sheet":"Feuil2","index":3,"n_rows":25,"n_cols":4,"rows_kept":25,"cut":false,"hidden":true,"merged":[[3,3,6,3],[18,3,24,3],[9,3,14,3]]}
[]
[]
[null,"Capacités ","Critères présents dans la circulaire ","Pondération"]
[null,"Capacité à mobiliser ses compétences, connaissances et les ressources disponibles",null,0.4]
[null,null,"Mobiliser ses compétences et connaissances au service \nde la réalisation du chef-d'oeuvre ;"]
[]
[null,null,"Mobiliser les ressources internes ou externes nécessaires\n (partenaires, moyens, équipements, etc.)."]
[]
[]
[null,"Capacité à s'engager, à organiser son travail et à s'intégrer dans son environnement",null,0.3]
[null,null,"Organiser et planifier son travail et tenir à jour l'état des\n avancée et des progrès réalisés ;"]
[]
[null,null,"S'intégrer dans son environnement et/ou un collectif de travail ;"]
[]
[null,null,"Prendre des responsabilités et des initiatives dans une\ndémarche de projet."]
[]
[]
[]
[null,"Capacité à analyser son travail, à s'adapter aux aléas et à rendre compte du travail mené",null,0.3]
[]
[null,null,"S'adapter aux situations et proposer des solutions pour \nremédier aux éventuelles difficultés rencontrées ;"]
[]
[null,null,"Rendre compte de l'état d'avancement du chef-d'œuvre\n tout au long de sa réalisation ;"]
[]
[null,null,"Analyser, évaluer son travail personnel."]